fUST/lending_fUST_20250516
["ID","MTS","AMOUNT","RATE_DAILY","PERIOD"]
[361228049,1747365042044,-400.0,0.00013698,2]
[361228050,1747365042053,-450.0,0.00013698,2]
[361228051,1747365042063,-505.30455568,0.00013698,2]
[361228052,1747365042072,-450.0,0.00013698,2]
[361228053,1747365042081,-1000.0,0.00013698,2]
[361228054,1747365042091,-402.47537258,0.00013698,2]
[361228055,1747365042100,-400.0,0.00013698,2]
[361228056,1747365042111,-402.38199585,0.00013698,2]
[361228057,1747365042120,-403.58621329,0.00013698,2]
[361228058,1747365042130,-400.0,0.00013698,2]
[361228059,1747365042139,-706.68,0.00013698,2]
[361228060,1747365042149,-400.0,0.00013698,2]
[361228061,1747365042159,-401.56382124,0.00013698,2]
[361228062,1747365042168,-619.13,0.00013698,2]
[361228063,1747365042177,-450.0,0.00013698,2]
[361228064,1747365042187,-216.83263024,0.00013698,2]
[361228065,1747365042196,-409.54174884,0.00013698,2]
[361228066,1747365042205,-400.0,0.00013698,2]
[361228067,1747365042215,-400.0,0.00013698,2]
[361228068,1747365042223,-333.87839011,0.00013698,2]
[361228069,1747365042232,-214.00599766,0.00013698,2]
[361228070,1747365042242,-400.0,0.00013698,2]
[361228071,1747365042251,-400.0,0.00013698,2]
[361228072,1747365042260,-450.0,0.00013698,2]
[361228073,1747365042269,-401.18119845,0.00013698,2]
[361228074,1747365042279,-382.86533332,0.00013698,2]
[361228075,1747365042288,-400.0,0.00013698,2]
[361228076,1747365042297,-450.0,0.00013698,2]
[361228077,1747365042307,-513.22,0.00013698,2]
[361228078,1747365042316,-253.1065101,0.00013698,2]
[361228079,1747365042325,-450.0,0.00013698,2]
[361228080,1747365042335,-598.50739007,0.00013698,2]
[361228081,1747365042344,-450.0,0.00013698,2]
[361228082,1747365042354,-409.19049512,0.00013698,2]
[361228083,1747365042363,-463.38,0.00013698,2]
[361228084,1747365042373,-450.0,0.00013698,2]
[361228085,1747365042382,-407.68034913,0.00013698,2]
[361228086,1747365042391,-406.63794367,0.00013698,2]
[361228087,1747365042401,-450.0,0.00013698,2]
[361228088,1747365042410,-403.00160721,0.00013698,2]
[361228089,1747365042420,-407.6053313,0.00013698,2]
[361228090,1747365042430,-405.81535306,0.00013698,2]
[361228091,1747365042439,-408.12617601,0.00013698,2]
[361228092,1747365042449,-450.0,0.00013698,2]
[361228093,1747365042458,-450.0,0.00013698,2]
[361228094,1747365042467,-450.0,0.00013698,2]
[361228095,1747365042477,-404.11129609,0.00013698,2]
[361228096,1747365042487,-407.817219,0.00013698,2]
[361228097,1747365042496,-450.0,0.00013698,2]
[361228098,1747365042505,-517.53,0.00013698,2]
[361228099,1747365042514,-450.0,0.00013698,2]
[361228100,1747365042525,-450.0,0.00013698,2]
[361228101,1747365042535,-450.0,0.00013698,2]
[361228102,1747365042544,-450.0,0.00013698,2]
[361228103,1747365042721,-400.0,0.00013698,2]
[361228104,1747365042732,-472.27,0.00013698,2]
[361228105,1747365042742,-914.39,0.00013698,2]
[361228106,1747365042751,-400.0,0.00013698,2]
[361228107,1747365042760,-408.19755681,0.00013698,2]
[361228108,1747365042770,-450.0,0.00013698,2]
[361228109,1747365042780,-450.0,0.00013698,2]
[361228110,1747365042790,-450.0,0.00013698,2]
[361228111,1747365042799,-417.83743622,0.00013698,2]
[361228112,1747365042808,-230.48100882,0.00013698,2]
[361228113,1747365042818,-450.0,0.00013698,2]
[361228114,1747365042827,-450.0,0.00013698,2]
[361228115,1747365042836,-401.30771577,0.00013698,2]
[361228116,1747365042846,-450.0,0.00013698,2]
[361228117,1747365042856,-450.0,0.00013698,2]
[361228118,1747365042866,-511.52,0.00013698,2]
[361228119,1747365042875,-561.63,0.00013698,2]
[361228120,1747365042884,-450.0,0.00013698,2]
[361228121,1747365042894,-450.0,0.00013698,2]
[361228122,1747365042904,-450.0,0.00013698,2]
[361228123,1747365042913,-482.28,0.00013698,2]
[361228124,1747365042923,-450.0,0.00013698,2]
[361228125,1747365042933,-450.0,0.00013698,2]
[361228126,1747365042943,-450.0,0.00013698,2]
[361228127,1747365042953,-450.0,0.00013698,2]
[361228128,1747365042963,-450.0,0.00013698,2]
[361228129,1747365042973,-275.63735612,0.00013698,2]
[361228130,1747365042982,-450.0,0.00013698,2]
[361228131,1747365042991,-450.0,0.00013698,2]
[361228132,1747365043000,-450.0,0.00013698,2]
[361228133,1747365043009,-450.0,0.00013698,2]
[361228134,1747365043019,-1396.23,0.00013698,2]
[361228135,1747365043028,-450.0,0.00013698,2]
[361228136,1747365043038,-856.18,0.00013698,2]
[361228137,1747365043047,-450.0,0.00013698,2]
[361228138,1747365043056,-686.52,0.00013698,2]
[361228139,1747365043065,-450.0,0.00013698,2]
[361228140,1747365043074,-450.0,0.00013698,2]
[361228141,1747365043083,-365.04705802,0.00013698,2]
[361228142,1747365043092,-1543.88,0.00013698,2]
[361228143,1747365043102,-668.96,0.00013698,2]
[361228144,1747365043111,-450.0,0.00013698,2]
[361228145,1747365043120,-450.0,0.00013698,2]
[361228146,1747365043129,-450.0,0.00013698,2]
[361228147,1747365043138,-606.66,0.00013698,2]
[361228148,1747365043146,-400.98199728,0.00013698,2]
[361228149,1747365043155,-1731.01,0.00013698,2]
[361228150,1747365043164,-1296.34,0.00013698,2]
[361228151,1747365043174,-946.18,0.00013698,2]
[361228152,1747365043183,-400.0,0.00013698,2]
[361228153,1747365043192,-400.0,0.00013698,2]
[361228154,1747365043201,-474.08125274,0.00013698,2]
[361228155,1747365043210,-450.0,0.00013698,2]
[361228156,1747365043220,-586.44,0.00013698,2]
[361228157,1747365043229,-450.0,0.00013698,2]
[361228158,1747365043238,-407.08652107,0.00013698,2]
[361228159,1747365043247,-400.0,0.00013698,2]
[361228160,1747365043256,-789.23,0.00013698,2]
[361228161,1747365043266,-450.0,0.00013698,2]
[361228162,1747365043276,-450.0,0.00013698,2]
[361228163,1747365043285,-577.97,0.00013698,2]
[361228164,1747365043294,-487.26,0.00013698,2]
[361228165,1747365043304,-1125.93,0.00013698,2]
[361228166,1747365043313,-450.0,0.00013698,2]
[361228167,1747365043323,-1681.4,0.00013698,2]
[361228168,1747365043332,-403.78978925,0.00013698,2]
[361228169,1747365043341,-532.32,0.00013698,2]
[361228170,1747365043350,-401.45266925,0.00013698,2]
[361228171,1747365043360,-653.93,0.00013698,2]
[361228172,1747365043369,-450.0,0.00013698,2]
[361228173,1747365043378,-1569.72,0.00013698,2]
[361228175,1747365043387,-450.0,0.00013698,2]
[361228176,1747365043396,-450.0,0.00013698,2]
[361228177,1747365043406,-450.0,0.00013698,2]
[361228178,1747365043414,-767.32,0.00013698,2]
[361228179,1747365043423,-450.0,0.00013698,2]
[361228180,1747365043432,-414.93855163,0.00013698,2]
[361228181,1747365043442,-4833.6,0.00013698,2]
[361228182,1747365043451,-611.94,0.00013698,2]
[361228184,1747365043460,-450.0,0.00013698,2]
[361228186,1747365043469,-450.0,0.00013698,2]
[361228187,1747365043478,-450.0,0.00013698,2]
[361228188,1747365043487,-956.34,0.00013698,2]
[361228189,1747365043496,-400.0,0.00013698,2]
[361228190,1747365043506,-6420.65,0.00013698,2]
[361228191,1747365043515,-450.0,0.00013698,2]
[361228192,1747365043524,-656.09,0.00013698,2]
[361228193,1747365043533,-450.0,0.00013698,2]
[361228194,1747365043542,-135.81775239,0.00013698,2]
[361228196,1747365043822,-160.0,0.00013695,2]
[361228197,1747365043832,-679.00224761,0.00013698,2]
[361228198,1747365043842,-450.0,0.00013698,2]
[361228199,1747365043851,-462.77,0.00013698,2]
[361228200,1747365043861,-235.52790043,0.00013698,2]
[361228201,1747365043870,-6663.17,0.00013698,2]
[361228202,1747365043879,-407.63677829,0.00013698,2]
[361228203,1747365043888,-579.7,0.00013698,2]
[361228204,1747365043898,-450.0,0.00013698,2]
[361228205,1747365043907,-450.0,0.00013698,2]
[361228206,1747365043917,-450.0,0.00013698,2]
[361228207,1747365043927,-490.24,0.00013698,2]
[361228208,1747365043936,-412.80433873,0.00013698,2]
[361228209,1747365043945,-557.33,0.00013698,2]
[361228210,1747365043955,-450.0,0.00013698,2]
[361228211,1747365043964,-450.0,0.00013698,2]
[361228212,1747365043974,-318.10298486,0.00013698,2]
[361228213,1747365043983,-504.34,0.00013698,2]
[361228214,1747365043993,-2032.8,0.00013698,2]
[361228215,1747365044003,-450.0,0.00013698,2]
[361228216,1747365044012,-450.0,0.00013698,2]
[361228217,1747365044022,-982.72,0.00013698,2]
[361228218,1747365044031,-450.0,0.00013698,2]
[361228219,1747365044041,-450.0,0.00013698,2]
[361228220,1747365044050,-821.0,0.00013698,2]
[361228221,1747365044059,-1344.78,0.00013698,2]
[361228222,1747365044069,-850.03,0.00013698,2]
[361228223,1747365044078,-450.0,0.00013698,2]
[361228224,1747365044087,-450.0,0.00013698,2]
[361228225,1747365044097,-769.91,0.00013698,2]
[361228226,1747365044107,-450.0,0.00013698,2]
[361228227,1747365044115,-455.13,0.00013698,2]
[361228228,1747365044125,-450.0,0.00013698,2]
[361228229,1747365044134,-1838.4,0.00013698,2]
[361228230,1747365044143,-902.98,0.00013698,2]
[361228231,1747365044152,-450.0,0.00013698,2]
[361228232,1747365044162,-948.39,0.00013698,2]
[361228233,1747365044171,-1535.89,0.00013698,2]
[361228234,1747365044181,-966.86,0.00013698,2]
[361228235,1747365044190,-1681.72,0.00013698,2]
[361228236,1747365044199,-2625.82,0.00013698,2]
[361228237,1747365044208,-450.0,0.00013698,2]
[361228238,1747365044218,-471.69,0.00013698,2]
[361228239,1747365044227,-450.0,0.00013698,2]
[361228240,1747365044237,-522.24,0.00013698,2]
[361228241,1747365044247,-2953.15,0.00013698,2]
[361228242,1747365044256,-450.0,0.00013698,2]
[361228243,1747365044266,-1350.54,0.00013698,2]
[361228244,1747365044276,-973.7,0.00013698,2]
[361228245,1747365044285,-450.0,0.00013698,2]
[361228246,1747365044294,-450.0,0.00013698,2]
[361228247,1747365044303,-500.99,0.00013698,2]
[361228248,1747365044313,-450.0,0.00013698,2]
[361228249,1747365044322,-1042.98,0.00013698,2]
[361228250,1747365044331,-450.0,0.00013698,2]
[361228251,1747365044340,-2941.19,0.00013698,2]
[361228252,1747365044350,-1037.71,0.00013698,2]
[361228253,1747365044359,-450.0,0.00013698,2]
[361228254,1747365044368,-2476.41,0.00013698,2]
[361228255,1747365044377,-1773.52,0.00013698,2]
[361228256,1747365044387,-697.46,0.00013698,2]
[361228257,1747365044396,-450.0,0.00013698,2]
[361228258,1747365044405,-598.18,0.00013698,2]
[361228259,1747365044414,-450.0,0.00013698,2]
[361228260,1747365044424,-2409.08,0.00013698,2]
[361228261,1747365044433,-1273.22,0.00013698,2]
[361228262,1747365044442,-473.25,0.00013698,2]
[361228263,1747365044451,-833.4,0.00013698,2]
[361228264,1747365044460,-564.41,0.00013698,2]
[361228265,1747365044470,-450.0,0.00013698,2]
[361228266,1747365044479,-465.04,0.00013698,2]
[361228267,1747365044489,-794.85,0.00013698,2]
[361228268,1747365044498,-450.0,0.00013698,2]
[361228269,1747365044508,-450.0,0.00013698,2]
[361228270,1747365044517,-450.0,0.00013698,2]
[361228271,1747365044527,-1380.24,0.00013698,2]
[361228272,1747365044537,-901.38,0.00013698,2]
[361228273,1747365044546,-450.0,0.00013698,2]
[361228274,1747365044556,-450.0,0.00013698,2]
[361228275,1747365044565,-293.67621694,0.00013698,2]
[361228276,1747365044574,-521.48,0.00013698,2]
[361228277,1747365044583,-486.9,0.00013698,2]
[361228278,1747365044594,-450.0,0.00013698,2]
[361228279,1747365044604,-1074.36,0.00013698,2]
[361228280,1747365044614,-4435.62,0.00013698,2]
[361228281,1747365044624,-450.0,0.00013698,2]
[361228282,1747365044633,-562.92,0.00013698,2]
[361228283,1747365044643,-450.0,0.00013698,2]
[361228284,1747365044652,-2765.22,0.00013698,2]
[361228285,1747365044662,-1204.52,0.00013698,2]
[361228286,1747365044671,-1477.56,0.00013698,2]
[361228287,1747365044681,-6422.62,0.00013698,2]
[361228288,1747365044690,-429.384489,0.00013699,2]
[361228289,1747365044700,-500.0,0.00013699,2]
[361228290,1747365044709,-500.0,0.00013699,2]
[361228291,1747365044718,-500.0,0.00013699,2]
[361228292,1747365044727,-192.57240936,0.00013699,2]
[361228293,1747365044737,-500.0,0.00013699,2]
[361228294,1747365044746,-500.0,0.00013699,2]
[361228295,1747365044755,-500.0,0.00013699,2]
[361228296,1747365044765,-404.0,0.00013731,2]
[361228297,1747365044774,-600.0,0.00013774,2]
[361228298,1747365044784,-450.0,0.00013835,2]
[361228299,1747365044793,-450.0,0.00013835,2]
[361228300,1747365044803,-450.0,0.00013835,2]
[361228301,1747365044812,-450.0,0.00013835,2]
[361228302,1747365044822,-518.0,0.00013835,2]
[361228303,1747365044832,-674.65,0.00013835,2]
[361228304,1747365044842,-450.0,0.00013835,2]
[361228305,1747365044851,-503.12628555,0.00013835,2]
[361228306,1747365044860,-706.68,0.00013835,2]
[361228307,1747365044869,-450.0,0.00013835,2]
[361228308,1747365044879,-619.13,0.00013835,2]
[361228309,1747365044888,-450.0,0.00013835,2]
[361228310,1747365044898,-450.0,0.00013835,2]
[361228311,1747365044907,-513.22,0.00013835,2]
[361228312,1747365044916,-450.0,0.00013835,2]
[361228313,1747365044926,-450.0,0.00013835,2]
[361228314,1747365044935,-463.38,0.00013835,2]
[361228315,1747365044944,-450.0,0.00013835,2]
[361228316,1747365044953,-450.0,0.00013835,2]
[361228317,1747365044962,-450.0,0.00013835,2]
[361228318,1747365044971,-450.0,0.00013835,2]
[361228319,1747365044981,-450.0,0.00013835,2]
[361228320,1747365044990,-450.0,0.00013835,2]
[361228321,1747365045000,-517.53,0.00013835,2]
[361228322,1747365045010,-450.0,0.00013835,2]
[361228323,1747365045019,-450.0,0.00013835,2]
[361228324,1747365045028,-450.0,0.00013835,2]
[361228325,1747365045038,-450.0,0.00013835,2]
[361228326,1747365045047,-472.27,0.00013835,2]
[361228327,1747365045056,-914.39,0.00013835,2]
[361228328,1747365045065,-450.0,0.00013835,2]
[361228329,1747365045074,-460.5521831,0.00013835,2]
[361228330,1747365045084,-450.0,0.00013835,2]
[361228331,1747365045093,-450.0,0.00013835,2]
[361228332,1747365045102,-450.0,0.00013835,2]
[361228333,1747365045111,-450.0,0.00013835,2]
[361228334,1747365045121,-450.0,0.00013835,2]
[361228335,1747365045130,-511.52,0.00013835,2]
[361228336,1747365045140,-450.0,0.00013835,2]
[361228337,1747365045148,-561.63,0.00013835,2]
[361228338,1747365045158,-590.67620175,0.00013835,2]
[361228339,1747365045167,-371.5628375,0.00013835,2]
[361228340,1747365045176,-482.28,0.00013835,2]
[361228341,1747365045186,-450.0,0.00013835,2]
[361228342,1747365045195,-450.0,0.00013835,2]
[361228343,1747365045205,-450.0,0.00013835,2]
[361228344,1747365045214,-450.0,0.00013835,2]
[361228345,1747365045224,-450.0,0.00013835,2]
[361228346,1747365045233,-450.0,0.00013835,2]
[361228347,1747365045242,-153.75947937,0.00013835,2]
[361228348,1747365045251,-450.0,0.00013835,2]
[361228349,1747365045261,-450.0,0.00013835,2]
[361228350,1747365045269,-1396.23,0.00013835,2]
[361228351,1747365045279,-450.0,0.00013835,2]
[361228352,1747365045288,-856.18,0.00013835,2]
[361228353,1747365045298,-450.0,0.00013835,2]
[361228354,1747365045309,-686.52,0.00013835,2]
[361228355,1747365045319,-450.0,0.00013835,2]
[361228356,1747365045330,-450.0,0.00013835,2]
[361228357,1747365045340,-1543.88,0.00013835,2]
[361228358,1747365045351,-668.96,0.00013835,2]
[361228359,1747365045362,-450.0,0.00013835,2]
[361228360,1747365045371,-450.0,0.00013835,2]
[361228361,1747365045381,-450.0,0.00013835,2]
[361228362,1747365045392,-606.66,0.00013835,2]
[361228363,1747365045402,-1731.01,0.00013835,2]
[361228364,1747365045411,-1296.34,0.00013835,2]
[361228365,1747365045421,-946.18,0.00013835,2]
[361228366,1747365045432,-450.0,0.00013835,2]
[361228367,1747365045443,-586.44,0.00013835,2]
[361228368,1747365045453,-450.0,0.00013835,2]
[361228369,1747365045462,-789.23,0.00013835,2]
[361228370,1747365045471,-450.0,0.00013835,2]
[361228371,1747365045480,-450.0,0.00013835,2]
[361228372,1747365045490,-577.97,0.00013835,2]
[361228373,1747365045499,-487.26,0.00013835,2]
[361228374,1747365045508,-1125.93,0.00013835,2]
[361228375,1747365045517,-450.0,0.00013835,2]
[361228376,1747365045526,-1681.4,0.00013835,2]
[361228377,1747365045536,-532.32,0.00013835,2]
[361228378,1747365045545,-653.93,0.00013835,2]
[361228379,1747365045554,-450.0,0.00013835,2]
[361228380,1747365045564,-1569.72,0.00013835,2]
[361228381,1747365045573,-450.0,0.00013835,2]
[361228382,1747365045583,-450.0,0.00013835,2]
[361228383,1747365045592,-450.0,0.00013835,2]
[361228384,1747365045604,-767.32,0.00013835,2]
[361228385,1747365045614,-450.0,0.00013835,2]
[361228386,1747365045623,-4833.6,0.00013835,2]
[361228387,1747365045632,-611.94,0.00013835,2]
[361228388,1747365045642,-450.0,0.00013835,2]
[361228389,1747365045651,-450.0,0.00013835,2]
[361228390,1747365045662,-450.0,0.00013835,2]
[361228391,1747365045671,-956.34,0.00013835,2]
[361228392,1747365045682,-6420.65,0.00013835,2]
[361228393,1747365045692,-253.59017538,0.00013835,2]
[361228394,1747365045702,-656.09,0.00013835,2]
[361228395,1747365045711,-450.0,0.00013835,2]
[361228396,1747365045721,-814.82,0.00013835,2]
[361228397,1747365045730,-450.0,0.00013835,2]
[361228398,1747365045739,-462.77,0.00013835,2]
[361228399,1747365045749,-6663.17,0.00013835,2]
[361228400,1747365045759,-450.0,0.00013835,2]
[361228401,1747365045768,-579.7,0.00013835,2]
[361228402,1747365045778,-450.0,0.00013835,2]
[361228403,1747365045787,-450.0,0.00013835,2]
[361228404,1747365045796,-490.24,0.00013835,2]
[361228405,1747365045806,-557.33,0.00013835,2]
[361228406,1747365045815,-450.0,0.00013835,2]
[361228407,1747365045825,-450.0,0.00013835,2]
[361228408,1747365045834,-504.34,0.00013835,2]
[361228409,1747365045844,-2032.8,0.00013835,2]
[361228410,1747365045853,-450.0,0.00013835,2]
[361228411,1747365045862,-450.0,0.00013835,2]
[361228412,1747365045872,-982.72,0.00013835,2]
[361228413,1747365045881,-450.0,0.00013835,2]
[361228414,1747365045891,-450.0,0.00013835,2]
[361228415,1747365045900,-821.0,0.00013835,2]
[361228416,1747365045910,-1344.78,0.00013835,2]
[361228417,1747365045919,-850.03,0.00013835,2]
[361228418,1747365045929,-450.0,0.00013835,2]
[361228419,1747365045938,-450.0,0.00013835,2]
[361228420,1747365045947,-769.91,0.00013835,2]
[361228421,1747365045957,-353.48423498,0.00013835,2]
[361228422,1747365045966,-455.13,0.00013835,2]
[361228423,1747365045975,-450.0,0.00013835,2]
[361228424,1747365045985,-1838.4,0.00013835,2]
[361228425,1747365045995,-902.98,0.00013835,2]
[361228426,1747365046005,-450.0,0.00013835,2]
[361228427,1747365046014,-948.39,0.00013835,2]
[361228428,1747365046023,-1535.89,0.00013835,2]
[361228429,1747365046034,-966.86,0.00013835,2]
[361228430,1747365046043,-1681.72,0.00013835,2]
[361228431,1747365046052,-2625.82,0.00013835,2]
[361228432,1747365046062,-450.0,0.00013835,2]
[361228433,1747365046072,-471.69,0.00013835,2]
[361228434,1747365046081,-450.0,0.00013835,2]
[361228435,1747365046090,-522.24,0.00013835,2]
[361228436,1747365046099,-2953.15,0.00013835,2]
[361228437,1747365046109,-450.0,0.00013835,2]
[361228438,1747365046118,-1350.54,0.00013835,2]
[361228439,1747365046127,-973.7,0.00013835,2]
[361228440,1747365046137,-450.0,0.00013835,2]
[361228441,1747365046146,-450.0,0.00013835,2]
[361228442,1747365046156,-500.99,0.00013835,2]
[361228443,1747365046165,-450.0,0.00013835,2]
[361228444,1747365046175,-1042.98,0.00013835,2]
[361228445,1747365046184,-450.0,0.00013835,2]
[361228446,1747365046194,-2941.19,0.00013835,2]
[361228447,1747365046203,-1037.71,0.00013835,2]
[361228448,1747365046213,-450.0,0.00013835,2]
[361228449,1747365046224,-2476.41,0.00013835,2]
[361228450,1747365046233,-1773.52,0.00013835,2]
[361228451,1747365046243,-697.46,0.00013835,2]
[361228452,1747365046252,-450.0,0.00013835,2]
[361228453,1747365046262,-598.18,0.00013835,2]
[361228454,1747365046272,-450.0,0.00013835,2]
[361228455,1747365046282,-2409.08,0.00013835,2]
[361228456,1747365046292,-1273.22,0.00013835,2]
[361228457,1747365046302,-473.25,0.00013835,2]
[361228458,1747365046312,-833.4,0.00013835,2]
[361228459,1747365046322,-564.41,0.00013835,2]
[361228460,1747365046331,-450.0,0.00013835,2]
[361228461,1747365046341,-465.04,0.00013835,2]
[361228462,1747365046350,-794.85,0.00013835,2]
[361228463,1747365046359,-450.0,0.00013835,2]
[361228464,1747365046369,-450.0,0.00013835,2]
[361228465,1747365046378,-450.0,0.00013835,2]
[361228466,1747365046389,-1380.24,0.00013835,2]
[361228467,1747365046398,-901.38,0.00013835,2]
[361228468,1747365046408,-450.0,0.00013835,2]
[361228469,1747365046417,-450.0,0.00013835,2]
[361228470,1747365046427,-521.48,0.00013835,2]
[361228471,1747365046436,-486.9,0.00013835,2]
[361228472,1747365046446,-450.0,0.00013835,2]
[361228473,1747365046455,-1074.36,0.00013835,2]
[361228474,1747365046465,-4435.62,0.00013835,2]
[361228475,1747365046474,-450.0,0.00013835,2]
[361228476,1747365046484,-562.92,0.00013835,2]
[361228477,1747365046494,-450.0,0.00013835,2]
[361228482,1747365046643,-2765.22,0.00013835,2]
[361228483,1747365046677,-1204.52,0.00013835,2]
[361228484,1747365046687,-6422.62,0.00013835,2]
[361228486,1747365046697,-1477.56,0.00013835,2]
[361228487,1747365046706,-652.68038405,0.00013853,2]
[361228488,1747365046715,-256.309,0.00013873,2]
[361228489,1747365046724,-546.0,0.00013881,2]
[361228490,1747365046734,-2237.0,0.00013881,2]
[361228491,1747365046745,-707.0,0.00013881,2]
[361228492,1747365046754,-420.0,0.00013916,2]
[361228493,1747365046764,-420.0,0.00013916,2]
[361228494,1747365046774,-600.0,0.00013916,2]
[361228495,1747365046784,-450.0,0.00013972,2]
[361228496,1747365046794,-450.0,0.00013972,2]
[361228497,1747365046804,-450.0,0.00013972,2]
[361228498,1747365046813,-450.0,0.00013972,2]
[361228499,1747365046823,-518.0,0.00013972,2]
[361228500,1747365046833,-674.65,0.00013972,2]
[361228501,1747365046843,-450.0,0.00013972,2]
[361228502,1747365046853,-706.68,0.00013972,2]
[361228503,1747365046863,-450.0,0.00013972,2]
[361228504,1747365046873,-619.13,0.00013972,2]
[361228505,1747365046882,-450.0,0.00013972,2]
[361228506,1747365046891,-450.0,0.00013972,2]
[361228507,1747365046901,-513.22,0.00013972,2]
[361228508,1747365046911,-450.0,0.00013972,2]
[361228509,1747365046921,-450.0,0.00013972,2]
[361228510,1747365046931,-463.38,0.00013972,2]
[361228511,1747365046942,-450.0,0.00013972,2]
[361228512,1747365046951,-450.0,0.00013972,2]
[361228513,1747365046960,-450.0,0.00013972,2]
[361228514,1747365046970,-450.0,0.00013972,2]
[361228515,1747365046979,-450.0,0.00013972,2]
[361228516,1747365046989,-411.57227711,0.00013972,2]
[361228517,1747365046999,-517.53,0.00013972,2]
[361228518,1747365047009,-450.0,0.00013972,2]
[361228519,1747365047019,-202.42670469,0.00013972,2]
[361228520,1747365047032,-450.0,0.00013972,2]
[361228521,1747365047041,-450.0,0.00013972,2]
[361228522,1747365047051,-472.27,0.00013972,2]
[361228523,1747365047060,-914.39,0.00013972,2]
[361228524,1747365047069,-450.0,0.00013972,2]
[361228525,1747365047079,-450.0,0.00013972,2]
[361228526,1747365047088,-450.0,0.00013972,2]
[361228527,1747365047097,-450.0,0.00013972,2]
[361228528,1747365047106,-450.0,0.00013972,2]
[361228529,1747365047116,-450.0,0.00013972,2]
[361228530,1747365047125,-151.0,0.00013972,2]
[361228531,1747365047134,-511.52,0.00013972,2]
[361228532,1747365047143,-450.0,0.00013972,2]
[361228533,1747365047153,-561.63,0.00013972,2]
[361228534,1747365047162,-482.28,0.00013972,2]
[361228535,1747365047171,-450.0,0.00013972,2]
[361228536,1747365047180,-450.0,0.00013972,2]
[361228537,1747365047189,-450.0,0.00013972,2]
[361228538,1747365047199,-450.0,0.00013972,2]
[361228539,1747365047208,-450.0,0.00013972,2]
[361228540,1747365047216,-450.0,0.00013972,2]
[361228541,1747365047226,-450.0,0.00013972,2]
[361228542,1747365047235,-450.0,0.00013972,2]
[361228543,1747365047244,-1396.23,0.00013972,2]
[361228544,1747365047253,-450.0,0.00013972,2]
[361228545,1747365047262,-856.18,0.00013972,2]
[361228546,1747365047271,-450.0,0.00013972,2]
[361228547,1747365047281,-686.52,0.00013972,2]
[361228548,1747365047290,-450.0,0.00013972,2]
[361228549,1747365047299,-450.0,0.00013972,2]
[361228550,1747365047308,-1543.88,0.00013972,2]
[361228551,1747365047317,-668.96,0.00013972,2]
[361228552,1747365047326,-450.0,0.00013972,2]
[361228553,1747365047335,-450.0,0.00013972,2]
[361228554,1747365047345,-450.0,0.00013972,2]
[361228555,1747365047358,-606.66,0.00013972,2]
[361228556,1747365047367,-1731.01,0.00013972,2]
[361228557,1747365047376,-1296.34,0.00013972,2]